[Event "*** Titled Tuesday Blitz"]
[Site "Chess.com"]
[Date "2020.05.19"]
[Round "5"]
[White "BogdanDeac"]
[Black "ManuDavid2910"]
[Result "1-0"]
[WhiteElo "2987"]
[BlackElo "2688"]
[TimeControl "180+1"]
[EndTime "12:59:02 PDT"]
[Termination "BogdanDeac won by resignation"]

1. Nf3 {[%clk 0:03:00.9]} 1... Nf6 {[%clk 0:02:59.4]} 2. c4 {[%clk 0:02:59.7]}
2... e6 {[%clk 0:03:00.3]} 3. Nc3 {[%clk 0:02:59.2]} 3... d5 {[%clk 0:03:01.2]}
4. e3 {[%clk 0:02:59.1]} 4... c5 {[%clk 0:03:01.4]} 5. cxd5 {[%clk 0:02:58.7]}
5... exd5 {[%clk 0:03:02.3]} 6. d4 {[%clk 0:02:58.1]} 6... Nc6 {[%clk
0:03:02.8]} 7. Bb5 {[%clk 0:02:58]} 7... cxd4 {[%clk 0:03:02.7]} 8. Nxd4 {[%clk
0:02:57.9]} 8... Bd7 {[%clk 0:03:02.6]} 9. Nf3 {[%clk 0:02:56.9]} 9... Be6
{[%clk 0:02:59.8]} 10. O-O {[%clk 0:02:55]} 10... Bd6 {[%clk 0:02:59.9]} 11. b3
{[%clk 0:02:50.6]} 11... O-O {[%clk 0:02:59.7]} 12. Bb2 {[%clk 0:02:50.1]} 12...
Rc8 {[%clk 0:02:59.7]} 13. Rc1 {[%clk 0:02:46.2]} 13... h6 {[%clk 0:02:57.6]}
14. Ne2 {[%clk 0:02:41.6]} 14... Ne4 {[%clk 0:02:56]} 15. Ned4 {[%clk 0:02:32]}
15... Bd7 {[%clk 0:02:53.2]} 16. Be2 {[%clk 0:02:12.5]} 16... Re8 {[%clk
0:02:50.6]} 17. Nb5 {[%clk 0:02:11.8]} 17... Be6 {[%clk 0:02:49.2]} 18. Nxd6
{[%clk 0:02:06.4]} 18... Qxd6 {[%clk 0:02:50.1]} 19. Nd4 {[%clk 0:02:05]} 19...
Bd7 {[%clk 0:02:49.4]} 20. Nxc6 {[%clk 0:01:27.1]} 20... Bxc6 {[%clk 0:02:30.5]}
21. Qd4 {[%clk 0:01:24.9]} 21... Nf6 {[%clk 0:02:25.5]} 22. Bd3 {[%clk
0:01:10.3]} 22... a6 {[%clk 0:02:24.8]} 23. a4 {[%clk 0:01:03.6]} 23... Rc7
{[%clk 0:02:06.8]} 24. Rc2 {[%clk 0:00:57.6]} 24... Ree7 {[%clk 0:02:02.9]} 25.
Rfc1 {[%clk 0:00:56.6]} 25... Ne8 {[%clk 0:02:02.9]} 26. Qb6 {[%clk 0:00:49]}
26... Re6 {[%clk 0:01:29.7]} 27. Bf5 {[%clk 0:00:35.1]} 27... Ree7 {[%clk
0:01:29.7]} 28. Bd4 {[%clk 0:00:34.2]} 28... Qd8 {[%clk 0:01:12.6]} 29. Bd3
{[%clk 0:00:21.6]} 29... Re6 {[%clk 0:01:07.8]} 30. Qa5 {[%clk 0:00:21.5]} 30...
Qc8 {[%clk 0:00:58.9]} 31. Bf5 {[%clk 0:00:20.6]} 31... Rce7 {[%clk 0:00:55.1]}
32. b4 {[%clk 0:00:18.7]} 32... Qd7 {[%clk 0:00:53.4]} 33. Bxe6 {[%clk
0:00:17.9]} 33... Rxe6 {[%clk 0:00:54.3]} 34. b5 {[%clk 0:00:16.9]} 34... axb5
{[%clk 0:00:55.2]} 35. axb5 {[%clk 0:00:17.4]} 35... Bxb5 {[%clk 0:00:55.8]} 36.
Rc8 {[%clk 0:00:16.7]} 36... Bc6 {[%clk 0:00:55.9]} 37. Qd8 {[%clk 0:00:14.8]}
37... Qxd8 {[%clk 0:00:53.2]} 38. Rxd8 {[%clk 0:00:15.7]} 38... Kh7 {[%clk
0:00:51.8]} 39. Ra1 {[%clk 0:00:13.6]} 39... Nd6 {[%clk 0:00:50.7]} 40. Bc5
{[%clk 0:00:13.2]} 40... Ne4 {[%clk 0:00:47.7]} 41. Bd4 {[%clk 0:00:13.2]} 41...
Nd6 {[%clk 0:00:47.6]} 42. h3 {[%clk 0:00:13]} 42... Nf5 {[%clk 0:00:45.4]} 43.
Rd1 {[%clk 0:00:12.9]} 43... Ba4 {[%clk 0:00:41.2]} 44. Rd2 {[%clk 0:00:12]}
44... Bc6 {[%clk 0:00:41.3]} 45. Kh2 {[%clk 0:00:11.1]} 45... Nd6 {[%clk
0:00:41.3]} 46. Ra2 {[%clk 0:00:10]} 46... Nf5 {[%clk 0:00:37.1]} 47. Bc3 {[%clk
0:00:09.9]} 47... Re4 {[%clk 0:00:27.9]} 48. Rd2 {[%clk 0:00:07.5]} 48... h5
{[%clk 0:00:27.1]} 49. Bd4 {[%clk 0:00:06.4]} 49... Kg6 {[%clk 0:00:26.5]} 50.
Rc8 {[%clk 0:00:05.7]} 50... Re6 {[%clk 0:00:26]} 51. Ra8 {[%clk 0:00:05.3]}
51... Nd6 {[%clk 0:00:26.1]} 52. Ra1 {[%clk 0:00:04.9]} 52... Ne4 {[%clk
0:00:26.1]} 53. Rb2 {[%clk 0:00:04.6]} 53... Nd6 {[%clk 0:00:25.8]} 54. Rg1
{[%clk 0:00:04.4]} 54... Nf5 {[%clk 0:00:25.8]} 55. Rd2 {[%clk 0:00:04.8]} 55...
Nd6 {[%clk 0:00:25.2]} 56. g4 {[%clk 0:00:04.9]} 56... h4 {[%clk 0:00:22.9]} 57.
f4 {[%clk 0:00:04.8]} 57... Kh7 {[%clk 0:00:22.4]} 58. f5 {[%clk 0:00:04.7]}
58... Re4 {[%clk 0:00:22.5]} 59. Rf2 {[%clk 0:00:04.9]} 59... Nc4 {[%clk
0:00:21.9]} 60. Re1 {[%clk 0:00:04.6]} 60... b5 {[%clk 0:00:20.3]} 61. Rf4
{[%clk 0:00:04.5]} 61... Re8 {[%clk 0:00:19.1]} 62. g5 {[%clk 0:00:04.2]} 62...
Ne5 {[%clk 0:00:16.8]} 63. Rxh4+ {[%clk 0:00:03.6]} 63... Kg8 {[%clk 0:00:17.1]}
64. Kg2 {[%clk 0:00:04.1]} 64... b4 {[%clk 0:00:15.6]} 65. Rb1 {[%clk
0:00:03.8]} 65... Nd3 {[%clk 0:00:13.5]} 66. Kf3 {[%clk 0:00:03.8]} 66... Ba4
{[%clk 0:00:12.6]} 67. g6 {[%clk 0:00:03.8]} 67... fxg6 {[%clk 0:00:07.4]} 68.
fxg6 {[%clk 0:00:04.7]} 68... Bc2 {[%clk 0:00:08]} 69. Ra1 {[%clk 0:00:05]}
69... b3 {[%clk 0:00:03.5]} 70. Ra7 {[%clk 0:00:04.8]} 70... Ne1+ {[%clk
0:00:02.9]} 71. Ke2 {[%clk 0:00:04.4]} 71... Ng2 {[%clk 0:00:02]} 72. Rxg7+
{[%clk 0:00:04.3]} 1-0

[Event "*** Titled Tuesday Blitz"]
[Site "Chess.com"]
[Date "2020.05.19"]
[Round "5"]
[White "ChessWarrior7197"]
[Black "Escanor89"]
[Result "1-0"]
[WhiteElo "2916"]
[BlackElo "2571"]
[TimeControl "180+1"]
[EndTime "12:59:02 PDT"]
[Termination "ChessWarrior7197 won on time"]

1. e4 {[%clk 0:03:00.9]} 1... c5 {[%clk 0:02:59.4]} 2. Nf3 {[%clk 0:03:00.7]}
2... d6 {[%clk 0:02:57.4]} 3. d4 {[%clk 0:03:00.8]} 3... cxd4 {[%clk 0:02:57.5]}
4. Qxd4 {[%clk 0:03:01.7]} 4... Nc6 {[%clk 0:02:56.1]} 5. Qe3 {[%clk 0:03:02.1]}
5... Nf6 {[%clk 0:02:53.6]} 6. Be2 {[%clk 0:03:02.6]} 6... e6 {[%clk 0:02:51.3]}
7. O-O {[%clk 0:03:03]} 7... Be7 {[%clk 0:02:49.6]} 8. c4 {[%clk 0:03:03.6]}
8... O-O {[%clk 0:02:48.9]} 9. Nc3 {[%clk 0:03:04.2]} 9... a6 {[%clk 0:02:47]}
10. b3 {[%clk 0:03:04.4]} 10... b6 {[%clk 0:02:44]} 11. Bb2 {[%clk 0:03:04.6]}
11... Bb7 {[%clk 0:02:44.1]} 12. Rfd1 {[%clk 0:03:04.6]} 12... Qc7 {[%clk
0:02:44.2]} 13. h3 {[%clk 0:03:04.7]} 13... Nb8 {[%clk 0:02:42.6]} 14. Rac1
{[%clk 0:03:04.8]} 14... Nbd7 {[%clk 0:02:42.7]} 15. Bd3 {[%clk 0:03:01.1]}
15... Rac8 {[%clk 0:02:40]} 16. Bb1 {[%clk 0:03:01]} 16... Rfe8 {[%clk 0:02:38]}
17. Na4 {[%clk 0:02:57.8]} 17... Nc5 {[%clk 0:02:27.9]} 18. Nxc5 {[%clk
0:02:55.1]} 18... dxc5 {[%clk 0:02:18.4]} 19. e5 {[%clk 0:02:53.5]} 19... Nd7
{[%clk 0:02:00.1]} 20. Bxh7+ {[%clk 0:02:44.5]} 20... Kxh7 {[%clk 0:02:00]} 21.
Qd3+ {[%clk 0:02:44.6]} 21... Kg8 {[%clk 0:01:58]} 22. Qxd7 {[%clk 0:02:45]}
22... Bxf3 {[%clk 0:01:52.6]} 23. gxf3 {[%clk 0:02:45.9]} 23... Bg5 {[%clk
0:01:46.5]} 24. Qxc7 {[%clk 0:02:41.8]} 24... Rxc7 {[%clk 0:01:46]} 25. Rc3
{[%clk 0:02:41.8]} 25... b5 {[%clk 0:01:32.2]} 26. Rcd3 {[%clk 0:02:38.1]} 26...
Kh7 {[%clk 0:01:27]} 27. Kg2 {[%clk 0:02:36.6]} 27... Kg6 {[%clk 0:01:26.2]} 28.
Rd6 {[%clk 0:02:29.7]} 28... Ra8 {[%clk 0:01:23.9]} 29. Bc3 {[%clk 0:02:17.4]}
29... Kf5 {[%clk 0:01:20.1]} 30. Rd7 {[%clk 0:02:17.2]} 30... Raa7 {[%clk
0:01:16.6]} 31. Rxc7 {[%clk 0:02:14.9]} 31... Rxc7 {[%clk 0:01:16.6]} 32. Rd6
{[%clk 0:02:15.8]} 32... b4 {[%clk 0:01:01.5]} 33. Bb2 {[%clk 0:02:08.5]} 33...
Bf4 {[%clk 0:00:58.6]} 34. Rxa6 {[%clk 0:02:05.6]} 34... Bxe5 {[%clk 0:00:58.8]}
35. Bc1 {[%clk 0:02:05.8]} 35... Bd4 {[%clk 0:00:51.6]} 36. Ra5 {[%clk
0:02:04.8]} 36... e5 {[%clk 0:00:49.9]} 37. Be3 {[%clk 0:02:03.3]} 37... f6
{[%clk 0:00:42.6]} 38. h4 {[%clk 0:02:02.3]} 38... Rd7 {[%clk 0:00:38.2]} 39.
Kg3 {[%clk 0:01:59.8]} 39... g6 {[%clk 0:00:25.2]} 40. Ra8 {[%clk 0:01:51.5]}
40... Rc7 {[%clk 0:00:21.2]} 41. Ra5 {[%clk 0:01:35.4]} 41... Rd7 {[%clk
0:00:20.6]} 42. Kg2 {[%clk 0:01:35.2]} 42... Rc7 {[%clk 0:00:20.4]} 43. Kf1
{[%clk 0:01:35.3]} 43... Rh7 {[%clk 0:00:19.3]} 44. Ke2 {[%clk 0:01:31.9]} 44...
Rxh4 {[%clk 0:00:18.8]} 45. Bxd4 {[%clk 0:01:29.8]} 45... cxd4 {[%clk
0:00:18.1]} 46. c5 {[%clk 0:01:30.3]} 46... Rh8 {[%clk 0:00:17.4]} 47. c6 {[%clk
0:01:25.6]} 47... Rc8 {[%clk 0:00:17.1]} 48. Ra6 {[%clk 0:01:25.9]} 48... g5
{[%clk 0:00:15.6]} 49. Kd3 {[%clk 0:01:24.1]} 49... g4 {[%clk 0:00:15.1]} 50.
fxg4+ {[%clk 0:01:22]} 50... Kxg4 {[%clk 0:00:15.3]} 51. Ke4 {[%clk 0:01:22.9]}
51... Re8 {[%clk 0:00:13.7]} 52. c7 {[%clk 0:01:20.5]} 52... f5+ {[%clk
0:00:12.3]} 53. Kd5 {[%clk 0:01:20.5]} 53... d3 {[%clk 0:00:12.5]} 54. Rd6
{[%clk 0:01:18.9]} 54... Rc8 {[%clk 0:00:10.1]} 55. Kxe5 {[%clk 0:01:02.4]}
55... Rxc7 {[%clk 0:00:09.3]} 56. Rxd3 {[%clk 0:01:02.9]} 56... Rc2 {[%clk
0:00:08.9]} 57. f3+ {[%clk 0:01:03.1]} 57... Kg5 {[%clk 0:00:08.1]} 58. Rd4
{[%clk 0:00:55.4]} 58... Re2+ {[%clk 0:00:07]} 59. Kd5 {[%clk 0:00:48.7]} 59...
Rxa2 {[%clk 0:00:06.9]} 60. f4+ {[%clk 0:00:20.5]} 60... Kg4 {[%clk 0:00:06.2]}
61. Rxb4 {[%clk 0:00:20.3]} 61... Rf2 {[%clk 0:00:06.1]} 62. Ke5 {[%clk
0:00:16.9]} 62... Re2+ {[%clk 0:00:05.2]} 63. Kf6 {[%clk 0:00:16.5]} 63... Rc2
{[%clk 0:00:02.9]} 64. Ke6 {[%clk 0:00:14.4]} 64... Re2+ {[%clk 0:00:02.8]} 65.
Kf6 {[%clk 0:00:14.2]} 65... Rc2 {[%clk 0:00:02.9]} 66. Ke7 {[%clk 0:00:10.5]}
66... Re2+ {[%clk 0:00:02.8]} 67. Kd6 {[%clk 0:00:11.1]} 67... Re4 {[%clk
0:00:02.3]} 68. Rb8 {[%clk 0:00:05.5]} 68... Kxf4 {[%clk 0:00:01.9]} 69. b4
{[%clk 0:00:06.4]} 69... Re1 {[%clk 0:00:01.2]} 70. b5 {[%clk 0:00:06.4]} 1-0

[Event "*** Titled Tuesday Blitz"]
[Site "Chess.com"]
[Date "2020.05.19"]
[Round "5"]
[White "mamey78"]
[Black "turayev_shahruh17"]
[Result "1-0"]
[WhiteElo "2380"]
[BlackElo "2517"]
[TimeControl "180+1"]
[EndTime "12:59:02 PDT"]
[Termination "mamey78 won by checkmate"]

1. e4 {[%clk 0:03:00.9]} 1... e5 {[%clk 0:02:58.3]} 2. Nf3 {[%clk 0:02:59.5]}
2... Nc6 {[%clk 0:02:58.4]} 3. Bb5 {[%clk 0:02:59.5]} 3... f5 {[%clk 0:02:58.5]}
4. d3 {[%clk 0:02:54]} 4... fxe4 {[%clk 0:02:55.7]} 5. dxe4 {[%clk 0:02:53]}
5... d6 {[%clk 0:02:56.6]} 6. Nc3 {[%clk 0:02:46.5]} 6... Nf6 {[%clk 0:02:57.5]}
7. h3 {[%clk 0:02:45.5]} 7... Be7 {[%clk 0:02:56]} 8. Qe2 {[%clk 0:02:45.5]}
8... O-O {[%clk 0:02:55]} 9. Bg5 {[%clk 0:02:41.8]} 9... Be6 {[%clk 0:02:34.3]}
10. O-O-O {[%clk 0:02:36.9]} 10... Nh5 {[%clk 0:02:25.5]} 11. h4 {[%clk
0:01:52.3]} 11... Nd4 {[%clk 0:02:01.6]} 12. Nxd4 {[%clk 0:01:42.3]} 12... Bxg5+
{[%clk 0:01:58]} 13. hxg5 {[%clk 0:01:35.3]} 13... Nf4 {[%clk 0:01:53.7]} 14.
Nxe6 {[%clk 0:01:15]} 14... Nxe2+ {[%clk 0:01:49.7]} 15. Bxe2 {[%clk 0:01:11.3]}
15... Qe7 {[%clk 0:01:47.6]} 16. Nxf8 {[%clk 0:01:07.8]} 16... Qxg5+ {[%clk
0:01:45.8]} 17. Kb1 {[%clk 0:01:06.8]} 17... Rxf8 {[%clk 0:01:46.2]} 18. Bf3
{[%clk 0:00:56.6]} 18... h6 {[%clk 0:01:34.6]} 19. Nd5 {[%clk 0:00:54.5]} 19...
Rf7 {[%clk 0:01:29.8]} 20. Rh5 {[%clk 0:00:50.7]} 20... Qg6 {[%clk 0:01:23.9]}
21. Rf5 {[%clk 0:00:42.9]} 21... Rd7 {[%clk 0:01:05.5]} 22. Bh5 {[%clk
0:00:35.3]} 22... Qxg2 {[%clk 0:00:56.7]} 23. Rf3 {[%clk 0:00:33.4]} 23... c6
{[%clk 0:00:39.6]} 24. Nf6+ {[%clk 0:00:29.6]} 24... gxf6 {[%clk 0:00:35.5]} 25.
Rg3+ {[%clk 0:00:30.5]} 25... Rg7 {[%clk 0:00:32.9]} 26. Rxg2 {[%clk 0:00:29.1]}
26... Rxg2 {[%clk 0:00:33.8]} 27. f3 {[%clk 0:00:29.1]} 27... Rg3 {[%clk
0:00:28.2]} 28. c4 {[%clk 0:00:25.9]} 28... Kf8 {[%clk 0:00:24.6]} 29. Rxd6
{[%clk 0:00:25]} 29... Ke7 {[%clk 0:00:24.4]} 30. c5 {[%clk 0:00:24.6]} 30...
Rg5 {[%clk 0:00:24.7]} 31. Bg4 {[%clk 0:00:22.5]} 31... h5 {[%clk 0:00:25.2]}
32. Bf5 {[%clk 0:00:21.2]} 32... Rg3 {[%clk 0:00:18.7]} 33. Rd7+ {[%clk
0:00:20.9]} 33... Kf8 {[%clk 0:00:19]} 34. Rxb7 {[%clk 0:00:20.7]} 34... Rxf3
{[%clk 0:00:19]} 35. Rxa7 {[%clk 0:00:19.9]} 35... h4 {[%clk 0:00:17.5]} 36. Rh7
{[%clk 0:00:19.7]} 36... Rf1+ {[%clk 0:00:17.4]} 37. Kc2 {[%clk 0:00:18.8]}
37... Rf2+ {[%clk 0:00:18.3]} 38. Kc3 {[%clk 0:00:18.4]} 38... Rf3+ {[%clk
0:00:15.1]} 39. Kb4 {[%clk 0:00:18.3]} 39... Rf2 {[%clk 0:00:15.7]} 40. Ka3
{[%clk 0:00:17.5]} 40... Rh2 {[%clk 0:00:14.3]} 41. b4 {[%clk 0:00:15.9]} 41...
Kg8 {[%clk 0:00:09.5]} 42. Kb3 {[%clk 0:00:15.8]} 42... Rh1 {[%clk 0:00:08]} 43.
a4 {[%clk 0:00:14.8]} 43... Rb1+ {[%clk 0:00:07.7]} 44. Kc3 {[%clk 0:00:13.4]}
44... Ra1 {[%clk 0:00:07.8]} 45. Rxh4 {[%clk 0:00:11.9]} 45... Rxa4 {[%clk
0:00:07.2]} 46. Rh6 {[%clk 0:00:10.1]} 46... Ra3+ {[%clk 0:00:06.2]} 47. Kc4
{[%clk 0:00:09.1]} 47... Ra1 {[%clk 0:00:04.7]} 48. Rxf6 {[%clk 0:00:07.6]}
48... Rc1+ {[%clk 0:00:05.6]} 49. Kb3 {[%clk 0:00:07.1]} 49... Kg7 {[%clk
0:00:06.5]} 50. Rxc6 {[%clk 0:00:06]} 50... Rd1 {[%clk 0:00:07.4]} 51. Rd6
{[%clk 0:00:06]} 51... Re1 {[%clk 0:00:07.6]} 52. Kc4 {[%clk 0:00:05.8]} 52...
Re3 {[%clk 0:00:08.5]} 53. Kd5 {[%clk 0:00:05.6]} 53... Kf7 {[%clk 0:00:09.4]}
54. Kxe5 {[%clk 0:00:05.6]} 54... Rc3 {[%clk 0:00:09.7]} 55. Rd7+ {[%clk
0:00:06.5]} 55... Ke8 {[%clk 0:00:09.4]} 56. Rd5 {[%clk 0:00:06.6]} 56... Kf8
{[%clk 0:00:09.8]} 57. Kd6 {[%clk 0:00:07]} 57... Kg7 {[%clk 0:00:10.7]} 58. c6
{[%clk 0:00:07.9]} 58... Kh6 {[%clk 0:00:11.6]} 59. c7 {[%clk 0:00:08.3]} 59...
Ra3 {[%clk 0:00:10.7]} 60. Rc5 {[%clk 0:00:09.2]} 60... Ra6+ {[%clk 0:00:11.2]}
61. Rc6 {[%clk 0:00:08.8]} 61... Ra3 {[%clk 0:00:12.1]} 62. Kd7+ {[%clk
0:00:09.7]} 62... Kg5 {[%clk 0:00:13]} 63. c8=Q {[%clk 0:00:09.4]} 63... Kf4
{[%clk 0:00:13.9]} 64. Rd6 {[%clk 0:00:10.3]} 64... Rd3 {[%clk 0:00:14.8]} 65.
Qc5 {[%clk 0:00:09.6]} 65... Rf3 {[%clk 0:00:13.6]} 66. Rd4 {[%clk 0:00:07.6]}
66... Kg3 {[%clk 0:00:14.5]} 67. Qd6+ {[%clk 0:00:08.5]} 67... Kg2 {[%clk
0:00:14.6]} 68. e5 {[%clk 0:00:08.3]} 68... Kh1 {[%clk 0:00:14.7]} 69. Rd2
{[%clk 0:00:09.2]} 69... Re3 {[%clk 0:00:13.9]} 70. Qd5+ {[%clk 0:00:08.7]}
70... Kg1 {[%clk 0:00:13]} 71. Qg2# {[%clk 0:00:07.8]} 1-0

[Event "*** Titled Tuesday Blitz"]
[Site "Chess.com"]
[Date "2020.05.19"]
[Round "5"]
[White "vaishali2001"]
[Black "Olga_Girya"]
[Result "1-0"]
[WhiteElo "2627"]
[BlackElo "2429"]
[TimeControl "180+1"]
[EndTime "12:59:13 PDT"]
[Termination "vaishali2001 won on time"]

1. e4 {[%clk 0:03:00.9]} 1... c6 {[%clk 0:02:59.5]} 2. d4 {[%clk 0:02:58.7]}
2... d5 {[%clk 0:02:59.8]} 3. Nd2 {[%clk 0:02:59.6]} 3... dxe4 {[%clk
0:02:59.3]} 4. Nxe4 {[%clk 0:03:00.5]} 4... Bf5 {[%clk 0:02:59.5]} 5. Qf3 {[%clk
0:02:59.6]} 5... e6 {[%clk 0:02:57.7]} 6. Ne2 {[%clk 0:02:59.2]} 6... Bxe4
{[%clk 0:02:55.4]} 7. Qxe4 {[%clk 0:02:58.5]} 7... Nf6 {[%clk 0:02:56.3]} 8. Qd3
{[%clk 0:02:48.8]} 8... Bd6 {[%clk 0:02:51.9]} 9. Bf4 {[%clk 0:02:40]} 9... Bxf4
{[%clk 0:02:46.1]} 10. Nxf4 {[%clk 0:02:40.9]} 10... Nbd7 {[%clk 0:02:42.1]} 11.
O-O-O {[%clk 0:02:36.6]} 11... Qa5 {[%clk 0:02:38.1]} 12. Kb1 {[%clk 0:02:35.8]}
12... O-O-O {[%clk 0:02:33]} 13. Be2 {[%clk 0:02:32]} 13... Nd5 {[%clk
0:02:22.1]} 14. Nxd5 {[%clk 0:02:27.8]} 14... Qxd5 {[%clk 0:02:19.6]} 15. Bf3
{[%clk 0:02:26.3]} 15... Qg5 {[%clk 0:02:12.4]} 16. h4 {[%clk 0:02:25]} 16...
Qf6 {[%clk 0:02:07.6]} 17. Qa3 {[%clk 0:02:13.9]} 17... Kb8 {[%clk 0:01:59.8]}
18. Rd3 {[%clk 0:02:13.5]} 18... Nb6 {[%clk 0:01:57.4]} 19. Qc5 {[%clk
0:01:39.8]} 19... Rd7 {[%clk 0:01:47]} 20. Qg5 {[%clk 0:01:29]} 20... Rhd8
{[%clk 0:01:44.9]} 21. Qxf6 {[%clk 0:01:25.7]} 21... gxf6 {[%clk 0:01:44.7]} 22.
Rhd1 {[%clk 0:01:26]} 22... f5 {[%clk 0:01:41.9]} 23. b3 {[%clk 0:01:21.5]}
23... Nd5 {[%clk 0:01:39.8]} 24. c4 {[%clk 0:01:19]} 24... Nf6 {[%clk
0:01:29.6]} 25. Kc2 {[%clk 0:01:17.3]} 25... Kc7 {[%clk 0:01:27.1]} 26. Kc3
{[%clk 0:01:15.9]} 26... h6 {[%clk 0:01:23.9]} 27. a3 {[%clk 0:01:13.2]} 27...
a5 {[%clk 0:01:22.3]} 28. g3 {[%clk 0:01:05.8]} 28... Rd6 {[%clk 0:01:12]} 29.
Re1 {[%clk 0:01:01.9]} 29... b6 {[%clk 0:01:01.2]} 30. Red1 {[%clk 0:00:56.1]}
30... R6d7 {[%clk 0:00:59.9]} 31. R1d2 {[%clk 0:00:53.3]} 31... Ne4+ {[%clk
0:00:30.4]} 32. Bxe4 {[%clk 0:00:51.9]} 32... fxe4 {[%clk 0:00:31.3]} 33. Re3
{[%clk 0:00:51.7]} 33... f5 {[%clk 0:00:32]} 34. Ree2 {[%clk 0:00:41]} 34... Rg8
{[%clk 0:00:27.6]} 35. Re1 {[%clk 0:00:24.6]} 35... Rg4 {[%clk 0:00:27.1]} 36.
b4 {[%clk 0:00:23.1]} 36... axb4+ {[%clk 0:00:20.9]} 37. axb4 {[%clk 0:00:24]}
37... Kd8 {[%clk 0:00:19.8]} 38. Ra2 {[%clk 0:00:23.7]} 38... Ke7 {[%clk
0:00:15.2]} 39. Ra6 {[%clk 0:00:24.1]} 39... e3 {[%clk 0:00:13]} 40. Rxe3 {[%clk
0:00:12.8]} 40... Rdxd4 {[%clk 0:00:12.8]} 41. Rxb6 {[%clk 0:00:11.9]} 41...
Rxc4+ {[%clk 0:00:13.1]} 42. Kb3 {[%clk 0:00:12.5]} 42... Kf6 {[%clk 0:00:13]}
43. f4 {[%clk 0:00:08]} 43... Rc1 {[%clk 0:00:10.9]} 44. Kb2 {[%clk 0:00:06.4]}
44... Rc4 {[%clk 0:00:10.3]} 45. Kb3 {[%clk 0:00:05.1]} 45... Rc1 {[%clk
0:00:04.4]} 46. b5 {[%clk 0:00:05.2]} 46... Rb1+ {[%clk 0:00:04]} 47. Kc4 {[%clk
0:00:05.5]} 47... cxb5+ {[%clk 0:00:03.5]} 48. Rxb5 {[%clk 0:00:05.6]} 48...
Rxb5 {[%clk 0:00:03.4]} 49. Kxb5 {[%clk 0:00:06.5]} 49... Rg8 {[%clk 0:00:04]}
50. Kc5 {[%clk 0:00:06]} 50... Rd8 {[%clk 0:00:04.5]} 51. Kc4 {[%clk 0:00:05.5]}
51... Rd5 {[%clk 0:00:04.8]} 52. Kc3 {[%clk 0:00:05.5]} 52... Ra5 {[%clk
0:00:05.2]} 53. Kd4 {[%clk 0:00:04.6]} 53... Ra4+ {[%clk 0:00:05.2]} 54. Kc5
{[%clk 0:00:05.1]} 54... Ra1 {[%clk 0:00:04.6]} 55. Kd6 {[%clk 0:00:04.9]} 55...
Ra6+ {[%clk 0:00:04.5]} 56. Kd7 {[%clk 0:00:04.8]} 56... Ra5 {[%clk 0:00:04.1]}
57. Rxe6+ {[%clk 0:00:04]} 57... Kg7 {[%clk 0:00:02.1]} 58. Re5 {[%clk
0:00:04.3]} 58... Ra7+ {[%clk 0:00:01.9]} 59. Ke6 {[%clk 0:00:04.3]} 59... Ra3
{[%clk 0:00:02.7]} 60. Kxf5 {[%clk 0:00:04.2]} 60... Rxg3 {[%clk 0:00:03.3]} 61.
Re7+ {[%clk 0:00:04.7]} 61... Kf8 {[%clk 0:00:03.8]} 62. Rh7 {[%clk 0:00:05.1]}
62... Ra3 {[%clk 0:00:02.8]} 63. Rxh6 {[%clk 0:00:05.2]} 63... Kg7 {[%clk
0:00:03.4]} 64. Rg6+ {[%clk 0:00:04.9]} 64... Kh7 {[%clk 0:00:03]} 65. Rc6
{[%clk 0:00:05.8]} 65... Ra5+ {[%clk 0:00:03]} 66. Kg4 {[%clk 0:00:06]} 66...
Ra1 {[%clk 0:00:02.8]} 67. h5 {[%clk 0:00:06.5]} 67... Rg1+ {[%clk 0:00:02.7]}
68. Kf5 {[%clk 0:00:06.9]} 68... Rh1 {[%clk 0:00:02.8]} 69. Kg5 {[%clk
0:00:06.7]} 69... Ra1 {[%clk 0:00:03.1]} 70. Rc7+ {[%clk 0:00:06.1]} 70... Kg8
{[%clk 0:00:02.6]} 71. f5 {[%clk 0:00:05.7]} 71... Ra5 {[%clk 0:00:01.7]} 72.
Kg6 {[%clk 0:00:05.5]} 72... Ra6+ {[%clk 0:00:01.1]} 73. f6 {[%clk 0:00:06.1]}
73... Ra8 {[%clk 0:00:01.6]} 74. Rh7 {[%clk 0:00:06.3]} 1-0